Cogmind - Beta 14 @@@ ROGUE MODE // 2024.09.01 @ 16:15:05 Player: Kunndt Result: Destroyed by G-47 Trooper with Particle Gun Performance ------------- Evolutions (2) 1000 Regions Visited (4) 800 Robots Destroyed (125) 625 Value Destroyed (4048) 4048 Prototype IDs (8) 160 Alien Tech Used (0) 0 Bonus (667) 667 TOTAL SCORE: 7300 Bonus ------- High Alert Combat Kills 667 Cogmind --------- Core Integrity 0/550 Matter 300/300 Energy 233/265 System Corruption 7% Temperature Warm (148) Movement Rolling (145) Ox3 Location -8/Storage Parts ------- > --- POWER (1) -------- Reinforced Ion Engine > --- PROPULSION (4) --- Light Treads Light Treads Light Treads Compact Wheel > --- UTILITY (4) ------ Improved Heat Sink High-capacity Storage Unit Sensor Array Improved Targeting Computer > --- WEAPON (2) ------- Heavy Particle Gun Ion Cannon > --- INVENTORY (20) --- Improved Ion Engine Light Angular Momentum Engine Light Treads Light Treads Wheel Improved Heat Sink Advanced Visual Processing Unit Improved Signal Interpreter Field Recycling Unit (0) Heavy EM Shotgun Heavy Particle Gun Advanced Beam Rifle Advanced Beam Rifle Heavy Laser Improved Assault Rifle Enhanced Autogun Flak Cannon Missile Launcher Missile Launcher Scythe Peak State ------------ > --- POWER ------------ Deuterium Engine > --- PROPULSION ------- Light Treads Light Treads Armored Wheel Armored Wheel > --- UTILITY ---------- Improved Heat Sink High-capacity Storage Unit Heavy Armor Plating > --- WEAPON ----------- Field Laser Enhanced Autogun > --- INVENTORY -------- Improved Ion Engine Improved Ion Engine Light Treads Light Treads Wheel Advanced Visual Processing Unit Sensor Array Improved Signal Interpreter Improved Targeting Computer Particle Charger Light Armor Plating Hardened Medium Armor Plating Hardlight Generator Field Recycling Unit Beam Rifle Beam Rifle EM Pulse Cannon Ion Cannon Grenade Launcher Katana [Rating: 30] Favorites ----------- Power Cooled Ion Engine Engine Cooled Ion Engine Propulsion Light Treads Treads Light Treads Leg Aluminum Leg Wheel Armored Wheel Hover Unit Hover Unit Utility High-capacity Storage Unit Device Improved Heat Sink Storage High-capacity Storage Unit Processor Improved Targeting Computer Protection Heavy Armor Plating Weapon Ion Cannon Energy Gun Small Laser Energy Cannon Ion Cannon Ballistic Gun Enhanced Autogun Launcher Grenade Launcher Build | -11 -10 -9 -8 -8 ------- Run | Yrd Mat Mat Mat Sto Slots Evolved 4 | . . 2 2 . Power . | . . . . . Propulsion 2 | . . 2 . . Utility 2 | . . . 2 . Weapon . | . . . . . Parts Attached 141 | 6 20 21 33 61 Power 10 | 1 1 3 1 4 Engine 10 | 1 1 3 1 4 Core . | . . . . . Reactor . | . . . . . Propulsion 52 | 2 14 10 9 17 Treads 23 | . . 4 5 14 Leg 10 | 2 7 1 . . Wheel 8 | . . 1 4 3 Hover 11 | . 7 4 . . Flight . | . . . . . Utility 41 | 1 3 4 13 20 Device 31 | . 3 3 9 16 Storage 2 | 1 . 1 . . Processor 1 | . . . 1 . Hackware . | . . . . . Protection 7 | . . . 3 4 Artifact . | . . . . . Weapon 38 | 2 2 4 10 20 Energy Gun 10 | 1 . . 2 7 Energy Cannon 11 | . . 4 3 4 Ballistic Gun 11 | 1 2 . 3 5 Ballistic Cannon . | . . . . . Launcher 6 | . . . 2 4 Special Weapon . | . . . . . Impact Weapon . | . . . . . Slashing Weapon . | . . . . . Piercing Weapon . | . . . . . Special Melee Weapon . | . . . . . Unidentified Prototypes 8 | . . 1 1 6 Parts Lost 20 | . . 2 3 15 Power 1 | . . . . 1 Propulsion 11 | . . 2 1 8 Utility 8 | . . . 2 6 Weapon . | . . . . . Highest Loss Streak 4 | . . 1 2 4 To Critical Strikes . | . . . . . Average Slot Usage (%) 94 | . 94 99 89 95 Engine 9 | . 14 11 9 8 Treads 20 | . . 22 23 25 Leg 2 | . 16 2 . . Wheel 8 | . . 7 12 9 Hover 3 | . 11 11 . . Device 10 | . 11 11 9 11 Storage 10 | . 14 11 9 9 Processor 3 | . . . . 9 Protection 4 | . . . 9 4 Energy Gun 5 | . 14 1 2 7 Energy Cannon 9 | . . 18 13 2 Ballistic Gun 4 | . 12 1 . 7 Peak Build Rating 30 | 6 7 20 30 28 Average Rating 21 | 4 6 16 26 24 On Entrance 12 | . 6 7 20 28 Naked Turns . | . . . . . Heaviest Build 76 | 13 14 61 76 71 Greatest Support 80 | 20 20 40 60 80 Greatest Overweight (x) 6 | . . 5 6 6 Average Overweight (x) 2 | . . 1 4 2 Largest Inventory Capacity 20 | 8 8 20 20 20 Average Capacity 16 | 7 8 11 20 20 Most Carried 20 | 2 8 12 20 20 Average Carried 14 | . 6 8 17 18 Final Capacity 20 | 8 8 20 20 20 Final Carried 20 | 2 8 12 20 20 Class Distribution -------------------- 65% | Scavenger-Mutant 34% | Mutant Dominant Class ---------------- Mutant | -10/Materials Scavenger-Mutant | -9/Materials Mutant | -8/Materials Scavenger-Mutant | -8/Storage Resources | -11 -10 -9 -8 -8 ----------- Run | Yrd Mat Mat Mat Sto Matter Collected 2398 | 250 327 230 468 1123 Remotely . | . . . . . Salvage Created 5306 | . 495 995 1898 1918 Parts 285 | . 34 56 99 96 Haulers Intercepted 8 | . 2 . 2 4 Recyclers Shooed 9 | . 1 2 5 1 Parts Field Recycled . | . . . . . Retrieved Matter . | . . . . . Parts Self-Destructed . | . . . . . Prevented . | . . . . . Kills | -11 -10 -9 -8 -8 ------- Run | Yrd Mat Mat Mat Sto Combat Hostiles Destroyed 89 | . 6 15 35 33 Guns 45 | . 6 2 9 28 Cannons 35 | . . 13 21 1 AOE 8 | . . . 5 3 Classes Destroyed 13 | . 6 2 3 2 Worker 7 | . 1 . 3 3 Builder 2 | . . . 2 . Hauler 8 | . 2 . 2 4 Recycler 9 | . 1 3 4 1 Mechanic 2 | . . . . 2 Operator 1 | . 1 . . . Watcher 7 | . 3 1 1 2 Swarmer 10 | . . . 8 2 Grunt 49 | . 6 8 18 17 Brawler 3 | . . . 1 2 Duelist 5 | . . 1 2 2 Protector 1 | . . . . 1 Sentry 21 | . . 6 6 9 Best Kill Streak 9 | . 3 5 9 7 Combat Bots Only 8 | . 3 5 8 5 Max Kills in Single Turn 2 | . 1 1 2 2 Gunslinging . | . . . . . Exploded 2 | . . . 1 2 Melee . | . . . . . Uniques/NPCs Destroyed . | . . . . . Combat | -11 -10 -9 -8 -8 -------- Run | Yrd Mat Mat Mat Sto Hostile Shots Fired 443 | . 29 49 158 207 Missed 99 | . 8 11 44 36 Damage Taken 5208 | . 231 515 1719 2743 Core 670 | . 33 78 190 369 Absorbed by Shields 52 | . . . . 52 Redirected to Shielding 102 | . . . . 102 Regen/Repaired (Parts) 251 | . 13 . . 238 Core Remaining (%) 88 | 100 86 80 . . Volleys Fired 331 | . 58 47 97 129 Largest 2 | . 2 2 2 2 Hottest 129 | . 60 120 123 129 Shots Fired 625 | . 97 94 184 250 Gun 380 | . 97 20 49 214 Cannon 230 | . . 74 126 30 Launcher 15 | . . . 9 6 Special . | . . . . . Kinetic 177 | . 39 10 8 120 Thermal 432 | . 58 84 167 123 Explosive 15 | . . . 9 6 Electromagnetic 1 | . . . . 1 Robot Hit Streak 23 | . 10 5 10 23 Robot Miss Streak 4 | . 2 4 4 3 Penetration Max . | . . . . . Secondary Targets 4 | . 1 . . 3 Max Gunslinging Chain 1 | . 1 . . 1 Shots Hit Robots 396 | . 63 51 113 169 Core Hits 208 | . 26 23 77 82 Critical Kills 2 | . 1 . . 1 Critical Parts Destroyed . | . . . . . Critical Strikes 7 | . 1 . 1 5 Burn 5 | . . . 1 4 Meltdown 1 | . . . . 1 Destroy 1 | . 1 . . . Melee Attacks . | . . . . . Impact . | . . . . . Slashing . | . . . . . Piercing . | . . . . . Sneak Attacks . | . . . . . Combat Hostiles . | . . . . . Follow-up Attacks . | . . . . . Damage Inflicted 8764 | . 743 1162 3097 3762 Guns 4129 | . 743 170 618 2598 Cannons 3162 | . . 992 1745 425 Explosions 1431 | . . . 692 739 Melee . | . . . . . Ramming 42 | . . . 42 . Kinetic 1912 | . 297 70 92 1453 Thermal 5379 | . 446 1092 2271 1570 Explosive 1431 | . . . 692 739 Electromagnetic . | . . . . . Impact . | . . . . . Slashing . | . . . . . Piercing . | . . . . . Highest Corruption 7 | . . . 3 7 Average Corruption 3 | . . . 2 3 Corruption Purged . | . . . . . Corruption Blocked . | . . . . . Effects 37 | . . . 14 23 Message Errors 5 | . . . 2 3 Matter Fused 13 | . . . 4 9 Heat Flow Errors 7 | . . . 2 5 Energy Discharges 1 | . . . . 1 Data Loss (minor) 5 | . . . 2 3 Data Loss (major) 2 | . . . 1 1 Misfires 1 | . . . 1 . Alerts 1 | . . . . 1 Weapon Failures 2 | . . . 2 . Overload Shots . | . . . . . Overflow Damage 105 | . . 47 26 32 Projectiles 52 | . . 47 5 . Explosions 42 | . . . 10 32 Melee 11 | . . . 11 . Knockbacks . | . . . . . Impact . | . . . . . Kinetic . | . . . . . Secondary . | . . . . . Self-Inflicted Damage 34 | . . . 9 25 Shots 1 | . . . . 1 Rammed 5 | . . . 5 . Targets Rammed 5 | . . . 5 . Kicked . | . . . . . Crushed . | . . . . . Highest Temperature 450 | . 72 296 450 435 Average Temperature 84 | . 22 44 82 112 Received Heat Transfer 2379 | . 126 237 747 1269 Effects 21 | . . 1 8 12 Shutdowns 2 | . . . . 2 Energy Bleed 3 | . . 1 . 2 Interference 15 | . . . 7 8 Short Circuit 1 | . . . 1 . Siege Activations . | . . . . . Robots Corrupted 1 | . . . 1 . Combat Hostiles . | . . . . . Parts Fried . | . . . . . Impact Corruptions 1 | . . . 1 . Robots Melted 1 | . . . . 1 Combat Hostiles 1 | . . . . 1 Parts Melted 12 | . 1 1 4 6 Heat Transferred 10015 | . 1000 1779 4033 3203 Parts Sabotaged . | . . . . . Parts Stolen . | . . . . . Parts Stripped . | . . . . . Power Chain Reactions . | . . . . . Alert | -11 -10 -9 -8 -8 ------- Run | Yrd Mat Mat Mat Sto Peak Influence 1097 | . 196 456 737 1097 Initial 291 | . . 35 87 291 Average 396 | . 61 255 330 709 Maximum Alert Level 3 | . . 2 3 3 Low Security (%) 29 | 100 100 26 27 . Level 1 32 | . . 70 41 15 Level 2 20 | . . 3 28 33 Level 3 17 | . . . 2 51 Level 4 . | . . . . . Level 5 . | . . . . . High Security . | . . . . . Max Security . | . . . . . Squads Dispatched 21 | . 4 1 9 7 Investigation 7 | . 2 . 3 2 Extermination . | . . . . . Reinforcement 5 | . 2 1 1 1 Assault 3 | . . . 1 2 Garrison 6 | . . . 4 2 Intercept . | . . . . . Searches Triggered . | . . . . . Construction Impeded . | . . . . . Haulers Reinforced . | . . . . . Active Scanning Responses . | . . . . . Cargo Convoy Interrupts . | . . . . . Stealth | -11 -10 -9 -8 -8 --------- Run | Yrd Mat Mat Mat Sto Distress Signals 7 | . 1 2 3 1 Communications Jammed . | . . . . . Distress Signals . | . . . . . Times Spotted 141 | . 16 27 50 48 Peak Tracking Total 6 | . 3 4 5 6 Tactical Retreats 6 | . . . 2 4 Traps | -11 -10 -9 -8 -8 ------- Run | Yrd Mat Mat Mat Sto Traps Triggered 4 | . 1 . 1 2 Indirectly . | . . . . . Trap Hack Attempts . | . . . . . Triggered . | . . . . . Disarmed . | . . . . . Reprogrammed . | . . . . . Reused . | . . . . . Traps Extracted . | . . . . . Installed . | . . . . . Triggered . | . . . . . Machines | -11 -10 -9 -8 -8 ---------- Run | Yrd Mat Mat Mat Sto Machines Disabled 10 | . 1 2 4 3 Max in Single Turn 1 | . 1 1 1 1 Garrison Access 1 | . . . . 1 Machines Repaired . | . . . . . Machines Dismantled . | . . . . . Machines Sabotaged . | . . . . . Overloaded Fab Kills . | . . . . . Hacking | -11 -10 -9 -8 -8 --------- Run | Yrd Mat Mat Mat Sto Machines Accessed 22 | . 5 3 5 9 Terminals 18 | . 4 3 3 8 Fabricators . | . . . . . Repair Stations 2 | . 1 . . 1 Recycling Units . | . . . . . Scanalyzers 2 | . . . 2 . Garrison Access . | . . . . . Total Hacks 71 | . 15 10 18 28 Successful 25 | . 6 3 6 10 Failed 46 | . 9 7 12 18 Catastrophic 8 | . 2 2 1 3 Database Lockouts . | . . . . . Manual 42 | . 6 9 11 16 Terminals 56 | . 12 10 11 23 Fabricators . | . . . . . Repair Stations 8 | . 3 . . 5 Recycling Units . | . . . . . Scanalyzers 7 | . . . 7 . Garrison Access . | . . . . . Terminal Hacks 15 | . 4 2 3 6 Part Schematic 2 | . . . 2 . Robot Analysis 1 | . 1 . . . Open Door 3 | . . . . 3 Terminal Index 3 | . 1 1 . 1 Alert Level 2 | . 1 1 . . Unreport Threat 2 | . . . 1 1 Patrol Status 1 | . . . . 1 Recall Investigation 1 | . 1 . . . Fabricator Hacks . | . . . . . Repair Station Hacks 6 | . 2 . . 4 Scan Component 3 | . 1 . . 2 Repair 3 | . 1 . . 2 Recycling Unit Hacks . | . . . . . Scanalyzer 3 | . . . 3 . Insert Component 2 | . . . 2 . Analyze 1 | . . . 1 . Garrison Access Hacks . | . . . . . Unauthorized Hacks 1 | . . 1 . . Terminals 1 | . . 1 . . Assimilate 1 | . . 1 . . Fabricators . | . . . . . Repair Stations . | . . . . . Recycling Units . | . . . . . Scanalyzers . | . . . . . Garrison Access . | . . . . . Data Cores Recovered . | . . . . . Used . | . . . . . Hacking Detections 20 | . 4 3 5 8 Full Trace Events 11 | . 4 . 5 2 Feedback Events 1 | . . . 1 . Corruption 1 | . . . 1 . Feedback Blocked . | . . . . . Robot Schematics Acquired . | . . . . . Robots Built . | . . . . . Authchips . | . . . . . Time . | . . . . . Total Robot Build Rating . | . . . . . Part Schematics Acquired 3 | . . . 3 . Parts Built . | . . . . . Authchips . | . . . . . Time . | . . . . . Total Part Build Rating . | . . . . . Parts Repaired 3 | . 1 . . 2 Time 112 | . 26 . . 86 Parts Recycled . | . . . . . Recycled Matter . | . . . . . Retrieved Matter . | . . . . . Retrieved Components . | . . . . . Parts Scanalyzed 1 | . . . 1 . Part Schematics Acquired 1 | . . . 1 . Parts Damaged . | . . . . . Bothacking | -11 -10 -9 -8 -8 ------------ Run | Yrd Mat Mat Mat Sto Used RIF Installer . | . . . . . Robots Hacked . | . . . . . Non-combat . | . . . . . Combat . | . . . . . Robot Hacks Applied . | . . . . . Relay Couplers Released 1 | . . . . 1 Machine Destruction 1 | . . . . 1 Fabnet Peak Effective % . | . . . . . Robots Rewired . | . . . . . Allies Hacked . | . . . . . Hacks Repelled . | . . . . . Allies | -11 -10 -9 -8 -8 -------- Run | Yrd Mat Mat Mat Sto Total Allies 1 | . . 1 . . Largest Group 1 | . . 1 . . Highest-Rated Group 10 | . . 10 . . Highest-Rated Ally 10 | . . 10 . . Total Orders 3 | . . . . 3 EXPLORE 3 | . . . . 3 Ally Attacks . | . . . . . Total Damage . | . . . . . Kills . | . . . . . Allies Corrupted . | . . . . . Allies Melted . | . . . . . Intel | -11 -10 -9 -8 -8 ------- Run | Yrd Mat Mat Mat Sto Robot Analysis Total 1 | . 1 . . . Derelict Logs Recovered . | . . . . . Drone Launches 5 | . . . . 5 Drone Recoveries 2 | . . . . 2 Exploration | -11 -10 -9 -8 -8 ------------- Run | Yrd Mat Mat Mat Sto Turns Passed 4083 | 50 562 820 1331 1320 Spaces Moved 1880 | 38 354 475 537 476 Core 8 | 8 . . . . Treads 181 | . . 62 22 97 Legs 233 | 30 199 4 . . Wheels 1127 | . . 233 515 379 Hover 331 | . 155 176 . . Flight . | . . . . . Fastest Speed 48 | 50 56 48 115 115 Average Speed 133 | 105 91 124 160 146 Slowest Speed 400 | 120 120 240 400 320 Overloaded Moves . | . . . . . Propulsion Burnouts . | . . . . . Robots Hopped . | . . . . . Cave-ins Triggered . | . . . . . Exploration Rate (%) 38 | 4 51 40 45 51 Regions Visited 4 Branch Regions 1 Pre-discovered Areas . | . . . . . Known Exits Taken . | . . . . . Unknown Exits Taken 4 | 1 1 1 1 . Scrap Searched . | . . . . . Spaces Dug 4 | . . 2 . 2 Terrain Destroyed 130 | . . 8 62 60 Melee . | . . . . . Projectile 18 | . . 8 5 5 AOE 112 | . . . 57 55 Terrain Rammed . | . . . . . Walls Destroyed . | . . . . . Machines Disabled . | . . . . . Actions | -11 -10 -9 -8 -8 --------- Run | Yrd Mat Mat Mat Sto Total 2842 | 45 488 617 816 876 Wait 345 | . 42 40 103 160 Move 1876 | 37 353 474 536 476 Hop . | . . . . . Pick Up 71 | 2 9 14 24 22 Fast Attach 26 | 6 2 5 1 12 Attach 31 | . 2 5 10 14 Detach 11 | . 2 2 3 4 Swap 84 | . 16 11 22 35 Drop 62 | . 4 19 15 24 Fire 331 | . 58 47 97 129 Melee . | . . . . . Ram 1 | . . . 1 . Kick . | . . . . . Crush 4 | . . . 4 . Escape Stasis . | . . . . . Rewire . | . . . . . Trap . | . . . . . Miscellaneous . | . . . . . Route ------- -11/Scrapyard -10/Materials -9/Materials -8/Materials -8/Storage History --------- Turn | Location | Event 7 | -11/Scrapyard | Discovered new exit (range 15) 51 | -11/Scrapyard | Entered Materials 312 | -10/Materials | Build established: Mutant 390 | -10/Materials | Repaired Hover Unit 504 | -10/Materials | Discovered new exit (range 15) 613 | -10/Materials | Entered another Materials area 613 | -9/Materials | Evolved 2 slots: Propulsion x2 915 | -9/Materials | Build established: Scavenger-Mutant 1402 | -9/Materials | Discovered new exit (range 3) 1433 | -9/Materials | Entered another Materials area 1433 | -8/Materials | Evolved 2 slots: Utility x2 2338 | -8/Materials | Garrison activated, responded to threat 2485 | -8/Materials | Build established: Mutant 2633 | -8/Materials | First assault squad dispatched 2690 | -8/Materials | Discovered new exit (range 16) 2695 | -8/Materials | Garrison activated, responded to threat 2759 | -8/Materials | Destroyed 8 combat bots 2764 | -8/Materials | Entered Storage 3053 | -8/Storage | Core integrity fell below 50% 3131 | -8/Storage | Build established: Scavenger-Mutant 3307 | -8/Storage | Garrison activated, responded to threat 3342 | -8/Storage | Lost 3 parts (1n2u) 3482 | -8/Storage | Lost 4 parts (3n1u) 3564 | -8/Storage | First assault squad dispatched 3604 | -8/Storage | Core integrity fell below 20% 3616 | -8/Storage | Repaired Enh. Autogun 3655 | -8/Storage | Lost 3 parts (1n2u) 4056 | -8/Storage | Repaired Lgt. Treads 4084 | -8/Storage | Destroyed by G-47 Trooper with Particle Gun Last Messages --------------- 04026_ System corrupted: Component data lost. 04030_ Connecting with Repair Station... >>Scan(Lgt. Treads) Scanning Lgt. Treads... Ready to Repair: Lgt. Treads Rating: 1 Time: 26 >>Repair Repairing Lgt. Treads... ETC: 26 04030_ ALERT: Suspicious activity at Repair Station S001. Dispatching Investigation squad. 04056_ Repair station completes Lgt. Treads repairs. 04056_ Acquired Lgt. Treads. 04068_ System corrupted: Heat flow error (+245). 04080_ G-47 Trooper suffers critical hit (Burn). 04082_ G-47 Trooper overheating. 04083_ G-47 Trooper suffers critical hit (Burn). 04083_ G-47 Trooper overheating. Map ----- +----------------------------------------------------+ | | | | | | | | | | | | | ?????????????????????????????????????????????????? | | ?????????????????????????????????????????????????? | | ?????????????????????????????????????????????????? | | ?????????????????????????????????????????????????? | | ?????????????????????????????????????????????????? | | ?????????????????????????????????????????????????? | | ?????????????????????????????????????????????????? | | ?????????????????????????????????????????????????? | | ?????????????????????????????????????????????????? | | ?????????????????????????????????????????????????? | | ?????????????????????????????????????????????????? | | ####?????????????????????????????????????????????? | | ??????????????????????????????????????????????? | | #??????????????????????????????????????????????? | | #???????????#####??????????????????????????????? | | #???????????#"""#??????????????????????????????? | | #???????????#"T"#??????###?????????????????????? | | #############" "########;#?????????????????????? | | ###### #?????????????????????? | | #+##############* # @ ####??????????????????? | | # =[% ###% # * """#??????????????????? | | # =!% ### gg %=[ R"#??????????????????? | | *% # " ## # " """#??????????????????? | | [ !# "G" *#?# # """ ####??????????????????? | | = [[# " #?# # """ #?????????????????????? | | [!# #?# [ =########?????????????????????? | | ####/##+##+#####=**[#????????????????????????????? | | ???#%%=![ %%=%= [=#????????????????????????????? | | ???#!#####+########%#????????????????????????????? | | ####%#??# #??# #????????????????????????????? | | **#??# #??#[#????????????????????????????? | | ######??# ####+###??????????????????????????? | | ???????## "T" # #??????????????????????????? | | ???????# """ # #??????????????????????????? | | ???????## # #??????????????????????????? | | #############+## #??####????????????????????? | | / ### #????????????????????? | | #############% # ## #????????????????????? | | ????????????# ####/#### #????????????????????? | | ??########### + #????????????????????? | | ??# # ###+#####T #????????????????????? | | ??# # ## #??####????????????????????? | | ??# # ## #??????????????????????????? | | ??# *** + ## #??????????????????????????? | +----------------------------------------------------+ Best States ------------- Heat Dissipation 45 Energy Generation 14 Energy Capacity 280 Matter Stores 300 Matter Capacity 300 Sight Range 16 Robot Scan Range 14 Terrain Scan Density 10 Armor Coverage 600 Weapon Shielding 66 Evasion (%) 55 Targeting Accuracy 6 Recoil Reduction 4 Particle Charging 15 Item Schematics ----------------- Hrd. Medium Armor Plating | -8/Materials | Scanalyzed Hvy. Armor Plating | -8/Materials | Hacked Adv. Targeting Computer | -8/Materials | Hacked Robot Schematics ------------------ None Fabricated ------------ Nothing Alien Tech Used ----------------- None Achievements -------------- None Challenges ------------ None Game ------ Seed MicrowarpSwarmStabilizer Manual? 0 Play Time 00:58:27 Cumulative 29.0 hours Start 2024.09.01 @ 15:14:56 End 2024.09.01 @ 16:15:05 Sessions 1 Manual Loads 0 Difficulty Rogue Special Mode None Game No. 25 Rogue 25 Adventurer 0 Explorer 0 Win Type - Total 0 Types 0/0/0/0/0/0/0/0/0 Lore% 12 Gallery% 30 Achievement% 25 Wizard Run 0 Options --------- Layout 1 ASCII 0 Keyboard 1 Movement Numpad Keybinds 0 Fullscreen 1 Font 16/Tamsyn Map View 55x38 Zoom Use 0% Tactical HUD 1 Map Filters NONE Filters NONE Steam 1 RUN: a7621b0d-7e9d-4386-96e8-0c86830f6c36